bitfinex/quotes_SOLUSD_20230120
["timestamp","ask_amount","ask_price","bid_price","bid_amount"]
[1674186975025,0.96,21.317,21.307,20.0]
[1674186975353,0.96,21.318,21.304,10.0]
[1674186975555,0.96,21.318,21.305,37.0]
[1674186975763,0.96,21.317,21.305,37.0]
[1674186976302,0.96,21.317,21.306,10.0]
[1674186976491,0.96,21.317,21.307,20.0]
[1674186977772,0.96,21.318,21.307,20.0]
[1674186977981,0.96,21.319,21.307,20.0]
[1674186978194,0.96,21.318,21.307,20.0]
[1674186980839,0.96,21.318,21.306,20.0]
[1674186983027,0.96,21.317,21.306,20.0]
[1674186986155,0.96,21.316,21.306,20.0]
[1674186986588,0.96,21.316,21.303,20.0]
[1674186986910,0.96,21.316,21.304,17.0]
[1674186987122,0.96,21.316,21.305,20.0]
[1674186989201,0.96,21.316,21.306,10.0]
[1674186989417,10.0,21.32,21.307,20.0]
[1674186991119,1.92,21.319,21.307,20.0]
[1674186997734,1.92,21.319,21.305,20.0]
[1674186998048,1.92,21.319,21.306,17.0]
[1674186998245,1.92,21.319,21.307,20.0]
[1674186999190,1.92,21.319,21.304,20.0]
[1674186999403,1.92,21.319,21.305,17.0]
[1674186999733,1.92,21.319,21.306,20.0]
[1674187012859,10.0,21.318,21.306,20.0]
[1674187013069,1.92,21.317,21.302,20.0]
[1674187018836,1.92,21.317,21.303,10.0]
[1674187019046,1.92,21.317,21.304,20.0]
[1674187019273,10.0,21.321,21.305,10.0]
[1674187019486,10.0,21.321,21.31,14.92]
[1674187020634,1.92,21.32,21.31,14.92]
[1674187032939,1.92,21.32,21.306,17.0]
[1674187033144,1.92,21.32,21.307,20.0]
[1674187033381,10.0,21.319,21.307,20.0]
[1674187033566,1.92,21.318,21.307,20.0]
[1674187033884,1.92,21.318,21.304,20.0]
[1674187035254,1.92,21.318,21.305,10.0]
[1674187035462,1.92,21.318,21.306,20.0]
[1674187036198,1.92,21.318,21.31,14.98]
[1674187036396,35.17,21.327,21.311,10.0]
[1674187037021,45.16,21.333,21.312,17.0]
[1674187037248,113.6287,21.329,21.32,15.01]
[1674187041767,113.6287,21.329,21.314,10.0]
[1674187041974,1.92,21.328,21.315,20.0]
[1674187042192,11.92,21.328,21.313,30.0]
[1674187042810,11.92,21.328,21.311,10.0]
[1674187043020,17.0,21.327,21.31,14.92]
[1674187043248,37.09,21.326,21.31,14.92]
[1674187043450,10.0,21.325,21.31,14.92]
[1674187043660,18.92,21.324,21.31,14.92]
[1674187043981,10.0,21.323,21.31,14.92]
[1674187044300,14.92,21.33,21.305,10.0]
[1674187044492,178.1415,21.34,21.312,10.0]
[1674187044493,45.16,21.336,21.312,10.0]
[1674187044702,45.16,21.336,21.313,37.0]
[1674187044912,45.16,21.336,21.314,10.0]
[1674187044913,45.16,21.333,21.314,10.0]
[1674187045117,45.16,21.333,21.315,37.0]
[1674187046911,10.0,21.331,21.315,37.0]
[1674187047118,1.92,21.33,21.315,37.0]
[1674187052606,10.0,21.329,21.315,20.0]
[1674187052822,1.92,21.328,21.313,20.0]
[1674187053135,1.92,21.328,21.314,17.0]
[1674187053343,1.92,21.328,21.315,20.0]
[1674187059655,18.92,21.328,21.31,15.0]
[1674187059863,38.92,21.328,21.31,15.0]
[1674187060290,10.0,21.327,21.31,15.0]
[1674187060497,18.92,21.326,21.31,15.0]
[1674187060710,10.0,21.325,21.31,15.0]
[1674187060926,18.92,21.324,21.307,114.1822]
[1674187061135,10.0,21.323,21.307,114.1822]
[1674187061345,10.0,21.321,21.307,114.1822]
[1674187061665,1.92,21.32,21.307,114.1822]
[1674187067556,1.92,21.32,21.304,19.28918565]
[1674187067746,10.0,21.319,21.305,20.0]
[1674187067953,1.92,21.318,21.305,20.0]
[1674187068582,10.0,21.317,21.305,20.0]
[1674187068799,1.92,21.316,21.305,20.0]
[1674187069211,1.92,21.316,21.303,20.0]
[1674187069431,10.0,21.315,21.303,20.0]
[1674187069640,1.92,21.314,21.303,20.0]
[1674187069854,1.92,21.314,21.302,20.0]
[1674187073105,18.92,21.314,21.296,108.4521]
[1674187073421,10.0,21.313,21.297,120.0]
[1674187073629,1.92,21.312,21.297,120.0]
[1674187074594,1.92,21.312,21.298,17.0]
[1674187076064,0.96,21.312,21.298,17.0]
[1674187076274,10.0,21.317,21.3,15.0]
[1674187076488,116.0086,21.318,21.301,17.0]
[1674187076795,116.0086,21.318,21.303,10.0]
[1674187077007,116.0086,21.318,21.304,37.0]
[1674187077223,116.0086,21.318,21.305,10.0]
[1674187077414,116.0086,21.318,21.307,10.0]
[1674187077625,116.0086,21.318,21.308,17.0]
[1674187078593,116.0086,21.318,21.305,29.28918565]
[1674187078902,116.0086,21.318,21.306,20.0]
[1674187082669,10.0,21.322,21.306,39.28918565]
[1674187082880,10.0,21.322,21.308,10.0]
[1674187083109,10.0,21.322,21.309,17.0]
[1674187083746,10.0,21.322,21.307,17.0]
[1674187084141,1.92,21.321,21.307,17.0]
[1674187089294,10.0,21.322,21.307,17.0]
[1674187090369,10.0,21.323,21.31,15.0]
[1674187090672,35.17,21.326,21.312,10.0]
[1674187090886,45.17,21.328,21.312,10.0]
[1674187091090,1.92,21.327,21.314,10.0]
[1674187091307,1.92,21.327,21.315,20.0]
[1674187092144,10.0,21.332,21.315,20.0]
[1674187092145,117.3981,21.329,21.315,20.0]
[1674187092470,0.96,21.328,21.316,17.0]
[1674187092683,0.96,21.328,21.317,20.0]
[1674187093084,10.96,21.328,21.317,20.0]
[1674187093289,0.96,21.328,21.317,20.0]
[1674187094893,10.96,21.328,21.317,20.0]
[1674187096148,0.96,21.328,21.317,20.0]
[1674187097622,10.96,21.327,21.317,20.0]
[1674187097829,0.96,21.326,21.313,20.0]
[1674187098030,0.96,21.325,21.313,20.0]
[1674187098241,0.96,21.326,21.313,20.0]
[1674187098451,10.0,21.327,21.314,17.0]
[1674187098671,10.0,21.327,21.315,20.0]
[1674187103407,10.0,21.327,21.316,17.0]
[1674187103599,10.0,21.328,21.317,20.0]
[1674187103930,117.3981,21.329,21.317,20.0]
[1674187104244,117.3981,21.329,21.318,17.0]
[1674187104772,10.0,21.328,21.318,17.0]
[1674187105510,10.0,21.328,21.317,20.0]
[1674187105821,1.92,21.327,21.309,10.0]
[1674187106666,10.0,21.326,21.309,10.0]
[1674187106854,18.92,21.325,21.309,10.0]
[1674187107059,10.0,21.324,21.309,10.0]
[1674187107386,1.92,21.323,21.308,10.0]
[1674187108027,1.92,21.323,21.311,17.0]
[1674187110028,10.0,21.326,21.312,10.0]
[1674187110245,1.92,21.325,21.313,17.0]
[1674187110437,152.5681,21.329,21.315,10.0]
[1674187110760,117.3981,21.329,21.317,10.0]
[1674187113071,117.3981,21.329,21.319,10.0]
[1674187113287,117.3981,21.329,21.32,17.0]
[1674187113598,117.3981,21.329,21.32,32.0]
[1674187115159,117.3981,21.329,21.32,15.0]
[1674187115487,10.0,21.328,21.32,15.0]
[1674187115686,10.0,21.328,21.316,8.296]
[1674187115914,10.0,21.328,21.317,37.0]
[1674187116326,10.0,21.328,21.317,20.0]
[1674187116732,10.0,21.328,21.314,20.0]
[1674187117590,10.0,21.328,21.315,17.0]
[1674187117785,10.0,21.328,21.316,20.0]
[1674187117988,10.0,21.328,21.317,17.0]
[1674187124561,10.0,21.328,21.316,20.0]
[1674187124758,10.0,21.328,21.314,20.0]
[1674187124969,10.0,21.328,21.315,17.0]
[1674187125181,10.0,21.328,21.316,20.0]
[1674187135173,1.92,21.327,21.316,20.0]
[1674187135683,1.92,21.327,21.313,20.0]
[1674187135896,1.92,21.327,21.314,24.689]
[1674187136230,1.92,21.327,21.315,20.0]
[1674187139997,1.92,21.327,21.312,20.0]
[1674187140845,1.92,21.327,21.313,19.461]
[1674187141059,1.92,21.327,21.314,37.0]
[1674187141268,10.0,21.328,21.314,20.0]
[1674187141480,10.0,21.328,21.315,17.0]
[1674187141689,10.0,21.328,21.316,20.0]
[1674187142637,127.3981,21.329,21.317,17.0]
[1674187143595,10.0,21.328,21.317,17.0]
[1674187150085,10.0,21.328,21.316,20.0]
[1674187150307,10.0,21.328,21.313,20.0]
[1674187150515,10.0,21.328,21.314,22.738]
[1674187150729,10.0,21.328,21.315,20.0]
[1674187151033,10.0,21.328,21.316,17.0]
[1674187151255,10.0,21.328,21.317,20.0]
[1674187151661,1.92,21.327,21.312,5.662]
[1674187151870,1.92,21.327,21.295,120.0]
[1674187151871,1.92,21.327,21.31,20.135]
[1674187152082,18.92,21.327,21.31,20.135]
[1674187152299,45.17,21.326,21.31,14.94]
[1674187152503,1.92,21.325,21.31,14.94]
[1674187152936,10.0,21.324,21.31,14.94]
[1674187153157,1.92,21.323,21.31,14.94]
[1674187156621,45.17,21.326,21.311,17.0]
[1674187156811,1.92,21.325,21.311,17.0]
[1674187158116,1.92,21.325,21.31,14.94]
[1674187160933,10.0,21.324,21.31,14.94]
[1674187161142,1.92,21.323,21.31,14.94]
[1674187172805,0.96,21.323,21.31,14.94]
[1674187173014,0.96,21.325,21.311,17.0]
[1674187173230,0.96,21.324,21.311,17.0]
[1674187177121,0.96,21.325,21.311,17.0]
[1674187177455,117.3981,21.329,21.312,20.0]
[1674187177765,117.3981,21.329,21.313,17.96]
[1674187177955,117.3981,21.329,21.315,10.0]
[1674187178166,117.3981,21.329,21.316,37.0]
[1674187178372,117.3981,21.329,21.317,10.0]
[1674187180159,117.3981,21.329,21.316,37.0]
[1674187180391,117.3981,21.329,21.316,32.0]
[1674187180581,10.0,21.328,21.316,32.0]
[1674187183117,117.3981,21.329,21.316,32.0]
[1674187183667,10.0,21.328,21.316,32.0]
[1674187184906,117.3981,21.329,21.316,32.0]
[1674187185116,117.3981,21.329,21.317,177.33887981]
[1674187185326,117.3981,21.329,21.319,10.0]
[1674187185538,117.3981,21.329,21.32,167.31533306]
[1674187186605,35.16,21.335,21.32,167.31533306]
[1674187186812,120.60586914,21.37,21.32,167.31533306]
[1674187186813,35.15,21.337,21.321,17.0]
[1674187187019,162.1721,21.338,21.322,10.0]
[1674187187959,1.92,21.337,21.322,10.0]
[1674187190488,152.1721,21.338,21.323,37.0]
[1674187190692,117.0221,21.338,21.323,37.0]
[1674187190901,117.0221,21.338,21.324,10.0]
[1674187191109,117.0221,21.338,21.326,10.0]
[1674187191544,118.1415,21.34,21.327,37.0]
[1674187191754,118.1415,21.34,21.33,15.0]
[1674187192075,118.1415,21.34,21.331,10.0]
[1674187193839,118.1415,21.34,21.33,15.0]
[1674187195318,118.1415,21.34,21.328,30.84918565]
[1674187195546,118.1415,21.34,21.327,20.0]
[1674187195736,10.0,21.339,21.325,20.0]
[1674187196804,10.0,21.339,21.326,17.0]
[1674187197233,10.0,21.339,21.327,20.0]
[1674187197747,0.96,21.338,21.327,20.0]
[1674187197949,36.11,21.338,21.327,20.0]
[1674187198284,10.0,21.337,21.326,20.0]
[1674187202392,45.15,21.339,21.326,20.0]
[1674187202609,45.15,21.339,21.327,17.0]
[1674187203012,35.15,21.339,21.327,17.0]
[1674187203222,118.1415,21.34,21.327,17.0]
[1674187203650,118.1415,21.34,21.328,10.96]
[1674187203863,35.14,21.345,21.33,15.0]
[1674187204183,115.6566,21.348,21.331,38.92]
[1674187204184,35.14,21.346,21.331,38.92]
[1674187204370,115.6566,21.348,21.332,13.74]
[1674187204575,115.6566,21.348,21.334,10.0]
[1674187204803,115.6566,21.348,21.335,37.0]
[1674187205209,10.0,21.347,21.335,37.0]
[1674187207013,35.13,21.35,21.336,0.96]
[1674187207332,145.533,21.359,21.34,14.94]
[1674187207544,10.0,21.35,21.34,14.94]
[1674187208885,10.0,21.35,21.336,19.28918565]
[1674187209092,10.0,21.35,21.337,37.0]
[1674187209326,0.96,21.349,21.335,20.0]
[1674187209731,10.0,21.35,21.335,51.84918565]
[1674187209938,10.0,21.35,21.335,39.28918565]
[1674187210149,10.0,21.35,21.336,11.81]
[1674187210581,10.0,21.35,21.337,20.0]
[1674187211309,10.0,21.35,21.336,20.0]
[1674187211519,10.0,21.35,21.337,17.0]
[1674187212267,10.0,21.35,21.336,20.0]
[1674187212268,36.09,21.349,21.336,20.0]
[1674187212457,17.96,21.348,21.331,20.0]
[1674187212667,46.1,21.347,21.331,20.0]
[1674187212878,17.96,21.346,21.331,20.0]
[1674187213088,10.96,21.345,21.331,20.0]
[1674187213311,0.96,21.344,21.331,20.0]
[1674187213504,0.96,21.343,21.331,20.0]
[1674187213737,0.96,21.342,21.326,19.28918565]
[1674187213947,0.96,21.342,21.322,10.18]
[1674187213948,36.11,21.341,21.322,10.18]
[1674187214182,119.6611,21.34,21.322,10.18]
[1674187214389,0.96,21.339,21.321,8.911]
[1674187214596,36.11,21.338,21.321,8.911]
[1674187214812,10.96,21.337,21.32,15.0]
[1674187215020,53.12,21.336,21.317,9.138]
[1674187215216,0.96,21.335,21.317,9.138]
[1674187215549,0.96,21.334,21.317,9.138]
[1674187215762,0.96,21.333,21.317,9.138]
[1674187215952,0.96,21.334,21.318,19.28918565]
[1674187216286,0.96,21.334,21.319,10.0]
[1674187216685,0.96,21.334,21.32,26.64618565]
[1674187216898,10.0,21.335,21.32,41.64618565]
[1674187217224,10.0,21.335,21.321,56.28918565]
[1674187217632,10.0,21.335,21.322,19.28918565]
[1674187217843,10.0,21.335,21.323,17.0]
[1674187218054,10.0,21.335,21.324,20.0]
[1674187219112,10.0,21.335,21.325,17.0]
[1674187219327,10.0,21.335,21.324,20.0]
[1674187219328,10.0,21.335,21.326,20.0]
[1674187219534,1.92,21.334,21.324,20.0]
[1674187220061,1.92,21.334,21.323,20.0]
[1674187222690,1.92,21.334,21.315,120.0]
[1674187222914,35.16,21.333,21.316,39.28918565]
[1674187223109,10.0,21.331,21.316,19.28918565]
[1674187223322,0.96,21.33,21.316,19.28918565]
[1674187223523,0.96,21.329,21.316,19.28918565]
[1674187223734,0.96,21.328,21.316,19.28918565]
[1674187224064,0.96,21.327,21.316,19.28918565]
[1674187224261,0.96,21.326,21.313,120.0]
[1674187224473,0.96,21.325,21.314,20.0]
[1674187224668,0.96,21.324,21.314,20.0]
[1674187224880,0.96,21.323,21.314,20.0]
[1674187225860,0.96,21.322,21.313,120.0]
[1674187226172,0.96,21.321,21.313,101.0936]
[1674187226367,0.96,21.32,21.305,101.0936]
[1674187226583,27.96,21.32,21.305,101.0936]
[1674187226907,0.96,21.319,21.305,101.0936]
[1674187227227,0.96,21.318,21.305,101.0936]
[1674187227432,0.96,21.317,21.305,101.0936]
[1674187227645,0.96,21.316,21.305,101.0936]
[1674187228356,0.96,21.315,21.305,101.0936]
[1674187228900,0.96,21.314,21.305,101.0936]
[1674187229218,0.96,21.313,21.305,101.0936]
[1674187229619,0.96,21.313,21.306,20.0]
[1674187230049,0.96,21.313,21.305,101.0936]
[1674187230050,0.96,21.312,21.305,101.0936]
[1674187230256,0.96,21.312,21.3,19.28918565]
[1674187230470,0.96,21.312,21.291,101.0936]
[1674187230687,0.96,21.311,21.297,19.28918565]
[1674187230904,0.96,21.31,21.291,101.0936]
[1674187231115,10.96,21.309,21.291,120.38278565]
[1674187231306,17.96,21.308,21.291,120.38278565]
[1674187231520,10.96,21.307,21.291,120.38278565]
[1674187231848,0.96,21.306,21.291,120.38278565]
[1674187232158,0.96,21.305,21.292,10.0]
[1674187232561,10.0,21.307,21.291,120.38278565]
[1674187232771,1.92,21.306,21.295,20.0]
[1674187236350,1.92,21.306,21.291,120.38278565]
[1674187236651,1.92,21.306,21.293,101.0936]
[1674187236977,18.92,21.306,21.293,101.0936]
[1674187237181,10.0,21.305,21.293,101.0936]
[1674187237411,18.92,21.304,21.293,101.0936]
[1674187237728,10.0,21.303,21.293,101.0936]
[1674187237909,1.92,21.302,21.293,101.0936]
[1674187238752,10.0,21.305,21.293,101.0936]
[1674187238968,0.96,21.304,21.293,101.0936]
[1674187239178,1.92,21.304,21.293,101.0936]
[1674187239397,1.92,21.304,21.297,101.0936]
[1674187242432,18.92,21.304,21.297,101.0936]
[1674187243292,10.0,21.303,21.297,101.0936]
[1674187243509,1.92,21.302,21.297,101.0936]
[1674187244646,10.0,21.305,21.297,101.0936]
[1674187246004,117.5887,21.307,21.297,101.0936]
[1674187246218,45.19,21.317,21.3,15.0]
[1674187246428,10.0,21.317,21.3,15.0]
[1674187247708,1.92,21.313,21.3,15.0]
[1674187247923,0.96,21.313,21.3,15.0]
[1674187248108,35.18,21.322,21.301,17.0]
[1674187248324,117.1078,21.322,21.302,31.92]
[1674187248654,10.0,21.321,21.304,10.0]
[1674187248844,10.0,21.321,21.305,17.0]
[1674187249054,10.0,21.321,21.306,20.0]
[1674187249288,10.0,21.321,21.307,17.0]
[1674187249917,10.0,21.321,21.306,20.0]
[1674187250120,10.0,21.317,21.306,20.0]
[1674187251262,10.0,21.317,21.305,20.0]
[1674187251583,10.0,21.321,21.307,19.28918565]
[1674187251794,10.0,21.321,21.308,17.0]
[1674187252845,0.96,21.32,21.308,17.0]
[1674187253270,0.96,21.32,21.307,17.0]
[1674187256860,0.96,21.32,21.305,39.28918565]
[1674187257061,0.96,21.319,21.306,17.0]
[1674187257275,0.96,21.318,21.307,20.0]
[1674187262015,117.1078,21.322,21.308,27.0]
[1674187262233,35.17,21.326,21.31,14.94]
[1674187262457,116.2954,21.329,21.312,10.0]
[1674187262745,116.2954,21.329,21.313,20.0]
[1674187262938,116.2954,21.329,21.315,10.0]
[1674187263144,116.2954,21.329,21.316,20.0]
[1674187263372,10.0,21.328,21.316,20.0]
[1674187264752,1.92,21.327,21.315,20.0]
[1674187264953,1.92,21.327,21.313,20.0]
[1674187265673,1.92,21.327,21.314,10.0]
[1674187266325,1.92,21.327,21.315,20.0]
[1674187270197,1.92,21.327,21.313,10.0]
[1674187270198,1.92,21.327,21.314,20.0]
[1674187270943,10.0,21.326,21.314,20.0]
[1674187271172,18.92,21.325,21.311,20.0]
[1674187271563,10.0,21.324,21.311,20.0]
[1674187271774,1.92,21.323,21.311,20.0]
[1674187275782,18.92,21.323,21.311,20.0]
[1674187276189,18.92,21.323,21.309,20.0]
[1674187276401,10.0,21.322,21.309,20.0]
[1674187276612,1.92,21.321,21.309,20.0]
[1674187277256,10.0,21.326,21.31,36.28918565]
[1674187277480,116.2954,21.329,21.31,56.27918565]
[1674187277660,116.2954,21.329,21.311,39.28918565]
[1674187277866,116.2954,21.329,21.313,10.0]
[1674187278199,116.2954,21.329,21.314,37.0]
[1674187278416,116.2954,21.329,21.315,10.0]
[1674187278618,116.2954,21.329,21.316,20.0]
[1674187279140,1.92,21.327,21.316,20.0]
[1674187279753,10.0,21.326,21.312,20.0]
[1674187279972,18.92,21.325,21.312,20.0]
[1674187280185,18.92,21.325,21.308,20.0]
[1674187280940,10.0,21.324,21.308,20.0]
[1674187281124,18.92,21.323,21.308,20.0]
[1674187281778,18.92,21.323,21.309,10.0]
[1674187281972,18.92,21.323,21.31,20.0]
[1674187282617,18.92,21.323,21.307,137.21738565]
[1674187282813,10.0,21.322,21.307,117.9282]
[1674187283026,10.0,21.32,21.307,117.9282]
[1674187283234,0.96,21.319,21.305,101.0936]
[1674187283444,0.96,21.318,21.305,101.0936]
[1674187284301,0.96,21.318,21.307,10.0]
[1674187286283,0.96,21.318,21.306,17.0]
[1674187286725,0.96,21.318,21.307,20.0]
[1674187288408,0.96,21.319,21.307,10.0]
[1674187288605,0.96,21.321,21.307,10.0]
[1674187288814,0.96,21.321,21.306,20.0]
[1674187288815,0.96,21.32,21.306,20.0]
[1674187289019,0.96,21.319,21.307,17.0]
[1674187292605,0.96,21.319,21.306,20.0]
[1674187292818,0.96,21.318,21.306,20.0]
[1674187294068,10.96,21.318,21.306,20.0]
[1674187294283,0.96,21.317,21.306,20.0]
[1674187294491,0.96,21.316,21.306,20.0]
[1674187294701,0.96,21.315,21.306,20.0]
[1674187298080,0.96,21.314,21.306,20.0]
[1674187298497,10.0,21.32,21.306,20.0]
[1674187298713,0.96,21.319,21.306,20.0]
[1674187299879,0.96,21.318,21.306,20.0]
[1674187301356,10.96,21.318,21.306,20.0]
[1674187301663,17.96,21.317,21.306,20.0]
[1674187301879,0.96,21.316,21.306,20.0]
[1674187303221,10.96,21.316,21.306,20.0]
[1674187303432,0.96,21.315,21.306,20.0]
[1674187304721,0.96,21.315,21.307,10.0]
[1674187305451,35.18,21.322,21.307,10.0]
[1674187305641,45.17,21.327,21.308,17.0]
[1674187306063,45.17,21.327,21.309,10.0]
[1674187306909,54.09,21.324,21.309,10.0]
[1674187307235,10.0,21.323,21.309,10.0]
[1674187307444,18.92,21.322,21.309,10.0]
[1674187308509,18.92,21.322,21.306,30.0]
[1674187308510,10.0,21.321,21.306,30.0]
[1674187308724,18.92,21.32,21.306,30.0]
[1674187308924,18.92,21.32,21.307,10.0]
[1674187309556,18.92,21.32,21.306,30.0]
[1674187310603,10.0,21.319,21.306,20.0]
[1674187310817,18.92,21.318,21.306,20.0]
[1674187311125,18.92,21.318,21.293,24.36952614]
[1674187311337,35.19,21.317,21.305,101.0936]
[1674187311553,10.0,21.315,21.305,101.0936]
[1674187311751,18.92,21.314,21.305,101.0936]
[1674187311960,10.0,21.313,21.305,101.0936]
[1674187312184,1.92,21.312,21.305,101.0936]
[1674187323119,114.6498,21.318,21.305,101.0936]
[1674187323327,114.6498,21.318,21.307,10.0]
[1674187324589,18.92,21.317,21.307,10.0]
[1674187326799,18.92,21.317,21.306,10.0]
[1674187327017,18.92,21.317,21.307,20.0]
[1674187327224,0.96,21.317,21.307,20.0]
[1674187327444,0.96,21.317,21.308,10.0]
[1674187328155,114.6498,21.318,21.308,10.0]
[1674187332264,114.6498,21.318,21.307,20.0]
[1674187332469,1.92,21.317,21.307,20.0]
[1674187335009,18.92,21.317,21.307,20.0]
[1674187335217,18.92,21.317,21.307,10.0]
[1674187337540,18.92,21.317,21.306,30.0]
[1674187337737,18.92,21.317,21.306,20.0]
[1674187338050,10.0,21.316,21.306,20.0]
[1674187338255,18.92,21.315,21.306,20.0]
[1674187339524,1.92,21.315,21.306,20.0]
[1674187340679,11.92,21.315,21.306,20.0]
[1674187341086,1.92,21.315,21.306,20.0]
[1674187347420,18.92,21.315,21.306,20.0]
[1674187351513,18.92,21.315,21.305,101.0936]
[1674187351829,10.0,21.314,21.305,101.0936]
[1674187352037,10.0,21.312,21.305,101.0936]
[1674187352256,10.0,21.31,21.305,101.0936]
[1674187352595,17.96,21.309,21.305,101.0936]
[1674187352784,10.0,21.308,21.305,101.0936]
[1674187352999,0.96,21.307,21.305,101.0936]
[1674187353184,0.96,21.306,21.305,101.0936]
[1674187353399,1.92,21.306,21.305,101.0936]
[1674187360784,0.96,21.306,21.305,101.0936]
[1674187360990,160.9565,21.316,21.305,101.0936]
[1674187361311,125.7665,21.316,21.305,101.0936]
[1674187362346,18.92,21.315,21.305,101.0936]
[1674187362991,10.0,21.314,21.305,101.0936]
[1674187363188,10.0,21.312,21.305,101.0936]
[1674187363398,0.96,21.311,21.305,101.0936]
[1674187363610,0.96,21.31,21.305,101.0936]
[1674187363809,0.96,21.309,21.305,101.0936]
[1674187364050,0.96,21.308,21.305,101.0936]
[1674187366150,0.96,21.307,21.305,101.0936]
[1674187367295,0.96,21.308,21.305,101.0936]
[1674187367507,0.96,21.31,21.305,101.0936]
[1674187367715,0.96,21.309,21.305,101.0936]
[1674187367936,0.96,21.308,21.305,101.0936]
[1674187369180,0.96,21.307,21.305,101.0936]
[1674187369390,0.96,21.306,21.305,101.0936]
[1674187369615,1.92,21.306,21.305,101.0936]
[1674187370145,1.92,21.306,21.29,15.01]
[1674187370351,0.96,21.305,21.297,20.0]
[1674187370575,0.96,21.304,21.297,20.0]
[1674187370882,0.96,21.304,21.297,121.0936]
[1674187371700,0.96,21.303,21.297,121.0936]
[1674187371911,0.96,21.302,21.297,121.0936]
[1674187372228,0.96,21.302,21.297,101.0936]
[1674187372229,0.96,21.301,21.297,101.0936]
[1674187372655,0.96,21.3,21.297,101.0936]
[1674187372873,0.96,21.299,21.297,101.0936]
[1674187373198,0.96,21.298,21.297,101.0936]
[1674187373399,1.92,21.298,21.297,101.0936]
[1674187381388,18.92,21.298,21.297,101.0936]
[1674187381596,1.92,21.298,21.297,101.0936]
[1674187381805,1.92,21.298,21.289,101.0936]
[1674187382011,0.96,21.297,21.289,101.0936]
[1674187382448,10.0,21.299,21.289,101.0936]
[1674187382633,45.2,21.306,21.289,101.0936]